bitfinex/quotes_ETHUSD_20250629
["timestamp","ask_amount","ask_price","bid_price","bid_amount"]
[1751190370505,0.001,2455.6,2455.5,24.63290416]
[1751190374742,0.001,2455.6,2455.5,24.29610416]
[1751190375041,0.001,2455.6,2455.5,15.81610416]
[1751190375343,0.001,2455.6,2455.5,24.29510416]
[1751190376240,0.001,2455.6,2455.5,11.74361384]
[1751190376428,0.001,2455.6,2455.5,12.75369032]
[1751190376806,0.001,2455.6,2455.1,0.3369]
[1751190377005,0.001,2455.6,2455.5,1.767]
[1751190377332,0.001,2455.6,2455.5,8.478]
[1751190377640,0.001,2455.6,2455.3,4.27594783]
[1751190377833,0.001,2455.6,2455.4,8.471]
[1751190378038,0.001,2455.6,2455.5,8.471]
[1751190378837,5.15151011,2455.5,2455.0,4.07322328]
[1751190379029,0.2032,2455.4,2455.2,1.761]
[1751190379349,0.2032,2455.4,2455.3,6.71]
[1751190379727,0.2032,2455.4,2455.2,1.761]
[1751190379930,0.2032,2455.4,2455.3,6.71]
[1751190381044,4.07341258,2455.6,2455.3,10.78282205]
[1751190381045,0.001,2455.6,2455.3,10.78282205]
[1751190381249,0.2042,2455.6,2455.3,6.71]
[1751190381625,0.001,2455.6,2455.3,8.39202036]
[1751190381832,0.001,2455.6,2455.4,0.2032]
[1751190382028,0.001,2455.6,2455.5,6.709]
[1751190390265,0.001,2455.6,2455.5,11.11839032]
[1751190399256,0.001,2455.6,2455.5,10.78149032]
[1751190399866,0.001,2455.6,2455.5,12.3005859]
[1751190400180,0.001,2455.6,2455.5,5.7947859]
[1751190400378,0.001,2455.6,2455.5,12.73969032]
[1751190400579,0.001,2455.6,2455.5,8.6672]
[1751190402271,0.001,2455.6,2455.5,1.9642]
[1751190402477,1.0809,2455.6,2455.3,1.761]
[1751190402669,1.2841,2455.6,2455.4,6.702]
[1751190402850,2.2270259,2455.6,2455.5,6.702]
[1751190403055,1.2841,2455.6,2455.5,6.702]
[1751190403255,0.001,2455.6,2455.5,10.77449032]
[1751190408211,0.001,2455.6,2455.5,6.702]
[1751190409322,0.001,2455.6,2455.5,10.77449032]
[1751190409665,0.001,2455.6,2455.5,10.77249032]
[1751190410919,0.001,2455.6,2455.5,6.7]
[1751190411712,0.001,2455.6,2455.4,0.2032]
[1751190411880,1.0431,2455.5,2455.3,1.761]
[1751190412084,1.0431,2455.5,2455.4,6.699]
[1751190414806,0.2042,2455.6,2455.4,6.699]
[1751190416710,0.2042,2455.6,2455.4,10.77160019]
[1751190416894,0.2042,2455.6,2455.4,6.699]
[1751190419310,0.2042,2455.6,2455.4,10.7716415]
[1751190419806,0.2042,2455.6,2455.5,4.07249032]
[1751190420012,0.001,2455.6,2455.5,4.07249032]
[1751190423214,0.001,2455.6,2455.5,4.40949032]
[1751190428317,0.84007026,2456.2,2455.9,4.07170767]
[1751190428523,0.84007026,2456.2,2456.0,6.694]
[1751190429187,0.2032,2456.1,2456.0,6.694]
[1751190429885,0.2032,2456.1,2455.7,0.2032]
[1751190430087,1.10367404,2456.1,2455.8,8.449]
[1751190430286,0.2032,2456.1,2455.8,8.449]
[1751190431344,1.049,2456.0,2455.8,8.449]
[1751190431545,1.049,2456.0,2455.5,1.755]
[1751190431546,4.07197189,2455.9,2455.5,1.755]
[1751190431847,1.2522,2455.8,2455.6,6.693]
[1751190432142,1.2522,2455.8,2455.5,1.755]
[1751190432328,1.2522,2455.8,2455.6,6.692]
[1751190433125,1.2522,2455.8,2455.7,6.692]
[1751190434814,5.32419283,2455.8,2455.7,6.692]
[1751190435747,13.97137063,2455.8,2455.7,6.691]
[1751190436046,15.04587063,2455.8,2455.7,6.691]
[1751190436346,1.0745,2455.5,2455.3,1.755]
[1751190436650,1.0745,2455.5,2455.4,6.691]
[1751190437857,1.0745,2455.5,2455.2,14.27617039]
[1751190438141,1.0745,2455.5,2455.3,1.755]
[1751190438348,1.2777,2455.5,2455.4,6.691]
[1751190439138,5.35019985,2455.5,2455.3,1.755]
[1751190439346,5.35019985,2455.5,2455.4,6.69]
[1751190439544,1.2777,2455.5,2455.4,6.69]
[1751190441245,1.2777,2455.5,2455.2,4.07289319]
[1751190441444,1.2777,2455.5,2455.4,6.69]
[1751190442555,5.35025957,2455.5,2455.0,4.27643729]
[1751190442848,5.35025957,2455.5,2455.2,1.749]
[1751190443238,4.07267891,2455.4,2455.3,6.689]
[1751190443436,5.35027744,2455.5,2455.3,6.689]
[1751190444213,4.07265618,2455.4,2455.1,1.749]
[1751190444447,0.2032,2455.3,2455.2,6.689]
[1751190448152,1.0745,2455.5,2455.2,6.689]
[1751190448318,1.2777,2455.5,2455.2,6.689]
[1751190448519,1.2777,2455.5,2455.3,4.91659125]
[1751190448717,1.2777,2455.5,2455.3,4.07279125]
[1751190449239,1.0888,2455.7,2455.5,4.07245851]
[1751190449447,1.0888,2455.7,2455.6,10.76032309]
[1751190449448,0.2032,2455.7,2455.6,10.76032309]
[1751190450026,0.2032,2455.7,2455.6,6.688]
[1751190452051,0.2032,2455.7,2455.6,10.76032448]
[1751190453054,0.2032,2455.7,2455.6,6.688]
[1751190453518,1.0694,2456.1,2455.7,4.0721152]
[1751190453724,0.2032,2456.0,2455.7,4.0721152]
[1751190455254,0.2032,2456.0,2455.6,10.76023911]
[1751190455962,4.27487512,2456.0,2455.6,6.688]
[1751190457443,4.27488932,2456.0,2455.6,6.688]
[1751190458055,0.2032,2456.0,2455.6,6.688]
[1751190458270,4.07192907,2455.9,2455.5,0.2032]
[1751190458569,1.0352,2455.8,2455.7,6.686]
[1751190459664,1.2384,2455.8,2455.7,6.686]
[1751190462136,1.0697,2456.0,2455.7,10.75815865]
[1751190462337,0.2032,2455.9,2455.7,10.75815865]
[1751190463970,0.2032,2455.9,2455.8,4.07199283]
[1751190465027,0.2032,2455.9,2455.7,6.686]
[1751190465028,0.2032,2455.9,2455.7,10.75807291]
[1751190465962,0.2032,2455.9,2455.8,4.07199283]
[1751190466168,0.001,2456.3,2456.2,4.07132969]
[1751190466466,0.001,2456.3,2456.2,10.75332969]
[1751190467171,0.001,2456.3,2456.2,6.682]
[1751190468438,0.001,2456.3,2456.2,10.75332969]
[1751190468662,0.001,2456.3,2456.2,6.682]
[1751190468963,0.001,2456.3,2456.2,10.75332969]
[1751190469164,0.001,2456.3,2456.2,12.48402432]
[1751190469379,0.001,2456.3,2456.2,12.68722432]
[1751190472037,0.001,2456.3,2456.2,0.2032]
[1751190472242,0.001,2456.3,2456.2,8.423]
[1751190478061,4.07216394,2456.3,2456.2,1.743]
[1751190478242,4.07216394,2456.3,2456.2,8.421]
[1751190479193,4.27536394,2456.3,2456.2,8.421]
[1751190480487,4.27536394,2456.3,2455.8,4.80491513]
[1751190480691,4.07133259,2456.2,2455.9,8.42]
[1751190480995,4.27544658,2456.3,2455.9,8.42]
[1751190481890,4.27544658,2456.3,2455.9,12.49181615]
[1751190482052,0.2042,2456.3,2455.9,12.49181615]
[1751190482247,0.2042,2456.3,2456.1,4.07138065]
[1751190482551,0.001,2456.3,2456.2,7.2058]
[1751190483585,0.001,2456.3,2456.2,11.27712969]
[1751190494368,0.001,2456.3,2456.2,7.2058]
[1751190495100,0.001,2456.3,2456.2,11.27712969]
[1751190495305,0.001,2456.3,2456.2,12.83230258]
[1751190496382,0.001,2456.3,2456.2,8.76097289]
[1751190497506,0.001,2456.3,2456.2,8.23117289]
[1751190498705,0.001,2456.3,2456.2,12.30250258]
[1751190501306,0.001,2456.3,2456.2,31.34267275]
[1751190501674,0.001,2456.3,2456.2,33.34267275]
[1751190502088,0.001,2456.3,2456.2,25.38220258]
[1751190502509,0.001,2456.3,2456.2,18.15620258]
[1751190502697,0.001,2456.3,2456.2,2.0]
[1751190502897,0.001,2456.3,2456.0,11.506]
[1751190503101,0.001,2456.3,2456.1,6.669]
[1751190503989,0.001,2456.3,2456.2,6.669]
[1751190504808,4.0722475,2456.3,2456.2,6.668]
[1751190505815,4.07133045,2456.2,2456.0,9.768]
[1751190506111,5.08993045,2456.2,2456.1,6.668]
[1751190506308,1.0186,2456.2,2456.0,9.768]
[1751190506480,5.09001081,2456.2,2456.1,6.668]
[1751190507612,5.08992969,2456.2,2456.1,6.668]
[1751190507910,14.76289321,2456.2,2456.1,6.668]
[1751190508315,14.76289321,2456.2,2455.5,5.8103992]
[1751190508316,4.071634,2456.1,2455.5,5.8103992]
[1751190508483,4.071634,2456.1,2455.6,6.668]
[1751190508883,4.07168632,2456.0,2455.6,6.668]
[1751190509078,4.07180878,2456.0,2455.6,6.668]
[1751190509282,4.07183134,2455.9,2455.6,2.65510098]
[1751190509614,4.07183134,2455.9,2455.5,1.738]
[1751190509615,1.0343,2455.8,2455.7,6.667]
[1751190510409,4.07173859,2456.0,2455.7,6.667]
[1751190510712,5.10603859,2456.0,2455.7,6.667]
[1751190510919,1.0343,2456.0,2455.7,6.667]
[1751190512226,1.0343,2456.0,2455.7,10.73915121]
[1751190513025,1.2375,2456.0,2455.7,10.73915121]
[1751190513220,1.2375,2456.0,2455.7,6.667]
[1751190513420,5.30919579,2456.0,2455.7,6.667]
[1751190514324,1.2375,2456.0,2455.7,6.667]
[1751190514489,5.30929431,2456.0,2455.7,6.667]
[1751190522231,5.30925,2456.0,2455.8,6.665]
[1751190522927,5.30925,2456.0,2455.5,7.0136874]
[1751190523130,5.30925,2456.0,2455.6,6.665]
[1751190523908,1.2375,2456.0,2455.6,10.73723171]
[1751190524224,1.2375,2456.0,2455.7,4.07215805]
[1751190524729,1.2375,2456.0,2455.6,10.73722828]
[1751190525228,5.3091834,2456.0,2455.6,10.73722828]
[1751190525593,1.2375,2456.0,2455.6,10.73722828]
[1751190525934,1.2375,2456.0,2455.6,6.665]
[1751190526144,5.30925329,2456.0,2455.6,6.665]
[1751190526344,1.2375,2456.0,2455.6,10.7372656]
[1751190526636,5.30919023,2456.0,2455.5,7.01362027]
[1751190526824,5.30919023,2456.0,2455.6,6.664]
[1751190527125,5.30919023,2456.0,2455.6,10.7363006]
[1751190527429,1.2375,2456.0,2455.6,10.7363006]
[1751190528524,7.04338657,2456.0,2455.5,7.01359861]
[1751190528734,5.30929185,2456.0,2455.7,6.663]
[1751190529029,1.2375,2456.0,2455.7,6.663]
[1751190529709,1.2375,2456.0,2455.5,1.0]
[1751190529710,7.96047017,2455.8,2455.5,1.0]
[1751190529899,12.23580539,2455.8,2455.6,6.663]
[1751190530093,12.23580539,2455.8,2455.7,6.663]
[1751190530421,13.97000011,2455.8,2455.7,6.663]
[1751190530822,12.23580539,2455.8,2455.7,6.663]
[1751190531019,0.2032,2455.8,2455.5,4.07248209]
[1751190531198,5.10597485,2456.0,2455.6,6.663]
[1751190531400,0.2032,2455.9,2455.6,6.663]
[1751190531708,0.2032,2455.9,2455.6,8.21708544]
[1751190531913,0.2032,2455.9,2455.6,6.663]
[1751190535635,0.2032,2455.9,2455.6,10.73529004]
[1751190535837,0.2032,2455.9,2455.7,4.07215788]
[1751190536335,0.2032,2455.9,2455.7,4.07209168]
[1751190536514,0.2032,2455.9,2455.6,10.73526415]
[1751190536718,0.2032,2455.9,2455.7,4.07215145]
[1751190537239,0.2032,2455.9,2455.6,12.28931742]
[1751190539439,0.2032,2455.9,2455.7,4.07212266]
[1751190540929,0.2032,2455.9,2455.8,4.07199283]
[1751190541956,0.2032,2455.9,2455.7,4.0720655]
[1751190542124,0.2032,2455.9,2455.7,5.78149763]
[1751190542311,0.2032,2455.9,2455.8,4.07199283]
[1751190542508,0.2032,2455.9,2455.7,5.78152961]
[1751190545750,0.2032,2455.9,2455.6,6.663]
[1751190546044,1.2117,2455.6,2455.0,0.2052]
[1751190546246,8.16367017,2455.5,2455.1,6.659]
[1751190546415,4.2758792,2455.4,2455.1,6.659]
[1751190546925,0.2032,2455.4,2455.1,6.659]
[1751190547129,4.27585851,2455.4,2455.1,6.659]
[1751190547440,4.27585695,2455.4,2455.1,6.659]
[1751190547944,0.2032,2455.4,2455.1,6.659]
[1751190548737,4.27588393,2455.4,2455.1,6.659]
[1751190548936,0.2032,2455.4,2455.1,6.659]
[1751190549335,4.27588286,2455.4,2455.1,6.659]
[1751190549548,5.10153302,2455.3,2455.0,0.2052]
[1751190549746,5.10153302,2455.3,2455.1,6.659]
[1751190550234,5.1015408,2455.3,2455.1,6.659]
[1751190551352,4.07309051,2455.2,2455.0,0.002]
[1751190551519,4.27629051,2455.2,2455.1,6.658]
[1751190552353,4.07315384,2455.1,2455.0,0.002]
[1751190552848,4.07315384,2455.1,2455.0,6.66]
[1751190554453,13.10342401,2455.1,2455.0,0.002]
[1751190554643,13.53105939,2455.1,2455.0,0.002]
[1751190572682,4.07197194,2455.9,2455.0,0.002]
[1751190572683,13.05982882,2455.7,2455.0,4.07528932]
[1751190572860,13.05982882,2455.7,2455.0,0.002]
[1751190572861,4.07283409,2455.3,2455.0,0.002]
[1751190573065,0.2032,2455.3,2455.0,0.002]
[1751190575489,0.2032,2455.3,2455.0,4.07529067]
[1751190575650,15.09945628,2455.7,2455.1,0.95754907]
[1751190575856,4.27569904,2455.5,2455.1,0.5297]
[1751190577083,0.2032,2455.5,2455.1,4.60281131]
[1751190577557,0.2032,2455.5,2455.2,4.60260073]
[1751190577758,0.2032,2455.5,2455.2,0.5297]
[1751190578366,4.2756909,2455.5,2455.2,0.5297]
[1751190578752,4.2756909,2455.5,2455.2,7.1847]
[1751190579153,4.2756909,2455.5,2455.2,6.655]
[1751190579353,4.07267912,2455.4,2455.2,6.655]
[1751190579555,4.07299376,2455.2,2455.1,6.654]
[1751190580383,0.2032,2455.2,2455.1,6.654]
[1751190583670,1.2449,2455.2,2455.0,0.002]
[1751190583992,7.96047017,2455.1,2455.0,0.002]
[1751190584600,0.2032,2455.2,2455.0,0.002]
[1751190589411,4.27620264,2455.2,2455.1,6.652]
[1751190590117,0.2032,2455.2,2455.1,6.652]
[1751190593998,4.27618794,2455.2,2455.1,6.652]
[1751190597011,0.2032,2455.2,2455.1,6.652]
[1751190597529,0.2032,2455.2,2455.1,6.64768215]
[1751190598535,4.07256263,2455.5,2455.1,7.17738215]
[1751190598699,4.27576263,2455.5,2455.1,11.2505252]
[1751190599428,4.27576263,2455.5,2455.1,7.17738215]
[1751190601441,4.27576263,2455.5,2455.1,11.25051499]
[1751190602507,0.2032,2455.5,2455.1,11.25051499]
[1751190602941,4.27572997,2455.5,2455.1,11.25051499]
[1751190603240,0.2032,2455.5,2455.1,11.25051499]
[1751190604562,4.27569986,2455.5,2455.1,11.25051499]
[1751190605420,0.2032,2455.5,2455.1,11.25051499]
[1751190605620,4.27569071,2455.5,2455.1,11.25051499]
[1751190605864,5.90652994,2455.5,2455.1,7.17738215]
[1751190607139,1.83403923,2455.5,2455.1,11.25050221]
[1751190607971,0.2032,2455.5,2455.1,11.25050221]
[1751190608472,0.2032,2455.5,2455.2,4.07289636]
[1751190609342,0.2032,2455.5,2455.2,4.07298794]
[1751190609652,4.0714044,2456.2,2455.7,4.07213036]
[1751190609853,4.07153479,2456.1,2455.8,7.3799]
[1751190610021,4.07153479,2456.1,2455.9,6.647]
[1751190610666,9.79881486,2456.2,2456.0,6.647]
[1751190610966,4.07161164,2456.1,2456.0,6.647]
[1751190616863,9.79881486,2456.2,2455.6,1.725]
[1751190616864,4.07207019,2455.8,2455.6,1.725]
[1751190617162,4.27527019,2455.8,2455.7,6.645]
[1751190620153,0.2032,2455.8,2455.7,6.645]
[1751190624567,4.27519283,2455.8,2455.7,6.643]
[1751190627364,0.2032,2455.8,2455.7,6.643]
[1751190631553,4.27493462,2456.0,2455.7,6.643]
[1751190632050,0.2032,2456.0,2455.7,6.643]
[1751190633676,0.2032,2456.0,2455.8,0.5288]
[1751190636188,0.2032,2456.0,2455.8,4.60075758]
[1751190636392,0.2032,2456.0,2455.8,0.5288]
[1751190636688,0.001,2456.3,2456.0,4.07161879]
[1751190636888,0.001,2456.3,2456.1,6.64]
[1751190636889,0.2042,2456.3,2456.1,6.64]
[1751190638395,0.2042,2456.3,2456.1,10.71149252]
[1751190638597,0.2042,2456.3,2456.1,6.64]
[1751190639898,4.27536673,2456.3,2456.1,6.64]
[1751190640401,12.03179986,2456.2,2456.1,6.64]
[1751190640786,4.07158054,2456.1,2455.6,4.60103521]
[1751190640961,0.2032,2456.0,2455.7,8.359]
[1751190641356,0.2032,2456.0,2455.6,4.80423521]
[1751190641892,0.2032,2456.0,2455.7,12.43113895]
[1751190642392,0.2032,2456.0,2455.7,14.15469776]
[1751190643082,0.2032,2456.0,2455.7,5.79569776]
[1751190643592,0.2032,2456.0,2455.8,6.638]
[1751190644653,0.2032,2456.0,2455.7,1.72355881]
[1751190644891,4.07190626,2455.9,2455.8,8.358]
[1751190645087,9.26617017,2456.0,2455.8,8.358]
[1751190645299,1.3057,2456.0,2455.8,8.358]
[1751190646090,5.37737766,2456.0,2455.8,8.358]
[1751190647700,4.07182702,2455.9,2455.8,1.721]
[1751190647896,4.07182702,2455.9,2455.8,8.358]
[1751190648095,4.07182702,2455.9,2455.4,4.60147592]
[1751190648293,0.2032,2455.8,2455.5,8.358]
[1751190648497,0.2032,2455.8,2455.6,6.636]
[1751190648709,0.2032,2455.8,2455.4,1.07063537]
[1751190648879,5.17252904,2455.7,2455.2,4.60185243]
[1751190649083,8.16367017,2455.6,2455.3,6.636]
[1751190649886,8.16367017,2455.6,2455.3,7.89931524]
[1751190650400,0.2032,2455.6,2455.3,7.89931524]
[1751190651196,0.2032,2455.6,2455.3,11.97211143]
[1751190651368,0.2032,2455.6,2455.4,6.636]
[1751190660315,8.16367017,2455.6,2455.2,0.2032]
[1751190660516,7.96047017,2455.4,2455.3,6.635]
[1751190660698,12.03319986,2455.4,2455.3,6.635]
[1751190661906,4.0730602,2455.2,2455.0,0.002]
[1751190662108,4.0730602,2455.2,2455.1,6.634]
[1751190662109,8.16367017,2455.2,2455.1,6.634]
[1751190662543,12.23665811,2455.2,2455.1,6.634]
[1751190663020,8.16367017,2455.2,2455.1,6.634]
[1751190664022,12.23665811,2455.2,2455.1,6.634]
[1751190664197,4.07315384,2455.1,2455.0,0.002]
[1751190664523,5.17895384,2455.1,2455.0,0.002]
[1751190664722,5.17895384,2455.1,2455.0,6.636]
[1751190665297,5.17895384,2455.1,2455.0,0.002]
[1751190665612,7.063291,2455.1,2455.0,0.002]
[1751190680352,15.10778568,2454.9,2454.8,0.002]
[1751190680648,23.06825585,2454.9,2454.8,0.002]
[1751190683055,23.26987912,2454.9,2454.8,0.002]
[1751190683234,26.39832831,2454.9,2454.8,0.002]
[1751190686744,14.07365162,2454.8,2454.6,0.002]
[1751190686940,15.08614952,2454.5,2454.4,0.002]
[1751190687253,23.04661969,2454.5,2454.4,0.002]
[1751190687439,18.20559482,2454.5,2454.4,0.002]
[1751190687645,26.16606499,2454.5,2454.4,0.002]
[1751190690544,17.19359482,2454.5,2454.4,0.002]
[1751190690743,25.15406499,2454.5,2454.4,0.002]
[1751190695490,14.07414952,2454.5,2454.4,0.002]
[1751190696886,15.09764952,2454.5,2454.4,0.002]
[1751190698004,10.0,2454.5,2454.4,0.002]
[1751190698301,14.07414952,2454.5,2454.4,0.002]
[1751190698894,4.07414952,2454.5,2454.4,0.002]
[1751190702100,4.07390136,2454.7,2454.4,0.002]
[1751190702401,4.07401832,2454.6,2454.4,0.002]
[1751190703587,23.05769471,2454.8,2454.4,0.002]
[1751190703588,4.07414952,2454.5,2454.4,0.002]
[1751190703788,4.07405095,2454.6,2454.4,0.002]
[1751190704574,4.07414952,2454.5,2454.4,0.002]
[1751190707672,4.88895232,2454.5,2454.4,0.002]
[1751190707874,5.95405232,2454.5,2454.4,0.002]
[1751190710608,13.91452249,2454.5,2454.4,0.002]
[1751190725817,23.91452249,2454.5,2454.4,0.002]
[1751190726904,4.07431551,2454.4,2454.3,0.002]
[1751190727084,9.27628824,2454.4,2454.3,0.002]
[1751190728940,14.07564395,2453.6,2453.5,0.002]
[1751190729119,22.03611412,2453.6,2453.5,0.002]
[1751190729637,13.07101412,2453.6,2453.5,0.002]
[1751190729838,14.95676601,2453.6,2453.5,0.002]
[1751190732260,15.26323706,2453.6,2453.5,0.002]
[1751190732558,25.26323706,2453.6,2453.5,0.002]
[1751190734321,24.95676601,2453.6,2453.5,0.002]
[1751190734535,15.96139584,2453.6,2453.5,0.002]
[1751190735059,4.0753926,2453.8,2453.5,0.002]
[1751190735551,4.07553916,2453.7,2453.5,0.002]
[1751190735716,7.96047017,2453.9,2453.5,0.002]
[1751190735916,4.07522101,2453.9,2453.6,0.5323]
[1751190737731,0.2032,2453.7,2453.6,0.5323]
[1751190740251,0.2032,2454.0,2453.6,4.60794395]
[1751190741346,12.03562102,2453.9,2453.6,0.5323]
[1751190741549,7.96047017,2453.7,2453.6,0.5323]
[1751190741725,8.16367017,2453.7,2453.5,0.002]
[1751190741928,12.23914814,2453.7,2453.5,0.002]
[1751190743052,4.07564395,2453.6,2453.5,0.002]
[1751190743252,0.2032,2453.6,2453.5,0.002]
[1751190749564,0.2032,2453.7,2453.5,0.002]
[1751190750578,0.2032,2453.7,2453.6,4.60794395]
[1751190750746,4.07474252,2454.2,2453.7,4.07544526]
[1751190750948,0.2032,2453.9,2453.7,4.07544526]
[1751190751136,4.07483812,2454.1,2453.6,0.5323]
[1751190751137,4.07482086,2454.1,2453.8,7.1583]
[1751190751462,0.2032,2454.0,2453.8,7.1583]
[1751190751759,0.2032,2454.0,2453.8,11.23351116]
[1751190757373,0.2032,2454.0,2453.8,7.1583]
[1751190759757,0.2032,2454.0,2453.8,11.23356863]
[1751190759957,7.96047017,2454.3,2453.9,4.07514568]
[1751190760196,0.2032,2454.2,2453.8,12.95572208]
[1751190760988,0.2032,2454.2,2453.9,4.07510283]
[1751190761182,11.38288872,2454.6,2454.2,0.5323]
[1751190761183,4.07404268,2454.6,2454.2,0.5323]
[1751190761475,4.07404268,2454.6,2454.3,6.625]
[1751190761878,12.0348652,2454.4,2453.9,4.60737257]
[1751190762071,12.03480034,2454.4,2454.0,8.335]
[1751190762266,4.07464884,2454.2,2454.0,8.335]
[1751190762675,12.03486651,2454.4,2454.0,8.335]
[1751190762844,7.96047017,2454.4,2454.0,12.40994587]
[1751190763053,22.03452645,2454.6,2454.1,4.07475264]
[1751190763462,4.07420556,2454.5,2454.0,12.40990211]
[1751190764164,22.03453444,2454.6,2454.0,12.40990211]
[1751190764480,22.03453444,2454.6,2454.1,4.07475088]
[1751190764981,10.0,2454.6,2454.2,11.2314131]
[1751190767989,14.07400233,2454.6,2454.2,11.2314131]
[1751190769202,14.07400233,2454.6,2454.2,7.1568]
[1751190771193,0.2032,2454.5,2454.2,7.1568]
[1751190772401,4.27739817,2454.5,2454.2,7.1568]
[1751190773506,0.2032,2454.5,2454.2,7.1568]
[1751190774801,4.27735101,2454.5,2454.2,7.1568]
[1751190775901,0.2032,2454.5,2454.2,7.1568]
[1751190778409,4.2773507,2454.5,2454.2,7.1568]
[1751190779002,0.2032,2454.5,2454.2,11.23138308]
[1751190779205,7.96047017,2454.9,2454.5,4.07414794]
[1751190779405,0.2032,2454.8,2454.6,7.1548]
[1751190779571,0.2032,2455.0,2454.6,7.1548]
[1751190779900,12.03353566,2455.2,2454.7,4.07372639]
[1751190779901,4.07301635,2455.2,2454.7,4.07372639]
[1751190780087,4.0732957,2455.1,2454.7,1.90424497]
[1751190780688,4.07335076,2455.0,2454.7,1.90424497]
[1751190780892,12.0338798,2455.0,2454.7,0.2032]
[1751190781471,12.0338798,2455.0,2454.8,6.622]
[1751190782012,12.0338798,2455.0,2454.9,6.622]
[1751190782187,12.0338798,2455.0,2454.7,0.2032]
[1751190782374,12.0338798,2455.0,2454.8,6.622]
[1751190782574,12.0338798,2455.0,2454.9,6.622]
[1751190783405,4.2762948,2455.2,2454.9,6.622]
[1751190783604,4.2762948,2455.2,2455.0,6.622]
[1751190783904,12.03329483,2455.3,2455.1,7.1548]
[1751190783905,0.2032,2455.3,2455.1,7.1548]
[1751190785012,4.27602803,2455.3,2455.1,7.1548]
[1751190785228,4.27602803,2455.3,2455.0,1.708]
[1751190785229,7.96047017,2455.2,2455.0,1.708]
[1751190785515,0.2032,2455.3,2455.1,6.621]
[1751190786011,0.2032,2455.5,2455.2,0.5328]
[1751190786179,0.2032,2455.5,2455.3,4.07282166]
[1751190786385,0.2032,2455.5,2455.3,4.07279356]
[1751190786593,0.001,2455.6,2455.4,4.07265618]
[1751190786783,0.001,2455.6,2455.5,11.22629032]
[1751190786978,0.001,2455.6,2455.5,12.36923935]
[1751190787612,0.001,2455.6,2455.5,8.29674903]
[1751190789012,0.001,2455.6,2455.5,10.00474903]
[1751190789413,0.001,2455.6,2455.5,9.47194903]
[1751190790722,0.001,2455.6,2455.5,13.54443935]
[1751190790926,0.001,2455.6,2455.5,13.74763935]
[1751190792418,0.001,2455.6,2455.5,14.82993935]
[1751190793530,0.001,2455.6,2455.5,10.20744903]
[1751190793732,0.001,2455.6,2455.5,9.0645]
[1751190793935,0.001,2455.6,2455.5,0.2032]
[1751190794107,0.001,2455.6,2455.5,8.5302]
[1751190794307,0.001,2455.6,2455.5,6.8222]
[1751190794534,0.001,2455.6,2455.5,0.2032]
[1751190794837,0.001,2455.6,2455.5,6.8222]
[1751190796427,0.001,2455.6,2455.5,6.8212]
[1751190797012,0.001,2455.6,2455.5,12.61437542]
[1751190797216,0.001,2455.6,2455.5,8.3386851]
[1751190797435,0.001,2455.6,2455.5,6.618]
[1751190797742,4.07332448,2455.6,2455.5,6.618]
[1751190799543,8.98337017,2455.6,2455.5,6.618]
[1751190799712,13.05569465,2455.6,2455.5,6.618]
[1751190801921,13.05569465,2455.6,2455.0,2.4425]
[1751190801922,4.07273646,2455.4,2455.1,1.707]
[1751190802249,0.2032,2455.3,2455.2,6.617]
[1751190802542,0.2032,2455.3,2455.1,1.707]
[1751190802712,0.2032,2455.3,2455.2,6.617]
[1751190804610,4.27611738,2455.3,2455.0,0.2032]
[1751190804812,0.2032,2455.3,2455.1,6.617]
[1751190805011,0.2032,2455.3,2455.2,6.617]
[1751190809251,4.07307078,2455.2,2454.9,1.706]
[1751190809569,4.27611652,2455.3,2455.0,6.617]
[1751190812236,4.27611652,2455.3,2454.9,0.2032]
[1751190812436,4.27643083,2455.1,2454.9,1.706]
[1751190812784,4.27643083,2455.1,2455.0,6.617]
[1751190813453,0.2032,2455.1,2455.0,6.617]
[1751190814173,0.2032,2455.1,2454.8,4.60592345]
[1751190814335,4.07254781,2455.5,2455.0,4.07331975]
[1751190814336,4.07269115,2455.4,2455.0,4.07331975]
[1751190814532,0.2032,2455.3,2454.9,10.89359599]
[1751190814831,0.2032,2455.3,2455.0,4.0733193]
[1751190815968,0.2032,2455.3,2454.9,10.89359942]
[1751190816969,0.2032,2455.3,2455.0,4.07331971]
[1751190817448,0.2032,2455.3,2455.1,4.07312402]
[1751190817636,0.2032,2455.3,2455.2,6.617]
[1751190821349,0.2032,2455.3,2455.2,10.68998794]
[1751190821560,1.0679,2455.6,2455.2,10.68998794]
[1751190821746,0.2032,2455.5,2455.2,10.68998794]
[1751190825314,4.27570197,2455.5,2455.2,6.617]
[1751190825480,6.01333468,2455.5,2455.2,6.617]
[1751190825659,1.94083271,2455.5,2455.2,6.617]
[1751190825982,1.94083271,2455.5,2455.2,10.68997133]
[1751190826182,0.2032,2455.5,2455.2,10.68997133]
[1751190826476,0.001,2455.6,2455.3,4.07266667]
[1751190826781,0.001,2455.6,2455.3,4.27586667]
[1751190827152,0.001,2455.6,2455.3,0.2032]
[1751190829372,0.001,2455.6,2455.3,4.27601588]
[1751190829677,0.001,2455.6,2455.3,5.82579105]
[1751190830452,0.001,2455.6,2455.3,1.75297517]
[1751190830746,0.001,2455.6,2455.3,0.2032]
[1751190831886,0.001,2455.6,2455.3,4.27601702]
[1751190833698,0.001,2455.6,2455.4,4.07258805]
[1751190833899,0.001,2455.6,2455.5,6.615]
[1751190841007,0.001,2455.6,2455.5,10.68749032]
[1751190841204,0.001,2455.6,2455.5,11.92683935]